fUST/lending_fUST_20241125
["ID","MTS","AMOUNT","RATE_DAILY","PERIOD"]
[343237221,1732518643685,-5.58947234,0.00020078,2]
[343237222,1732518643697,-1125.206343,0.00020078,2]
[343237241,1732519145664,490.37250838,0.00011,2]
[343237245,1732519192209,159.596049,0.00013973,2]
[343237258,1732519713431,8382.36737065,0.00025,30]
[343237259,1732519713676,180.0,0.00026,60]
[343237260,1732519713704,277837.42049604,0.00026,60]
[343237373,1732519832972,-4901.899981,0.00018,2]
[343237443,1732519838876,-899.1100003,0.00018,2]
[343237446,1732519838888,-544.19082374,0.00018,2]
[343237500,1732519840852,-337.58,0.00018,2]
[343237534,1732519843847,-332.84419496,0.00018,2]
[343237535,1732519843858,-183.4748385,0.00018004,2]
[343237536,1732519843868,-300.0,0.00018929,2]
[343237537,1732519843878,-300.0,0.00018929,2]
[343237538,1732519843886,-490.328509,0.0001893,2]
[343237539,1732519843895,-11125.0692744,0.0001893,2]
[343237540,1732519843904,-18.79438314,0.00018996,2]
[343237541,1732519843926,-96.51729585,0.00018996,2]
[343237542,1732519843938,-124.75785301,0.00018996,2]
[343237543,1732519843948,-650.63,0.00020027,2]
[343237544,1732519843957,-500.0,0.00020027,2]
[343237545,1732519843967,-519.64,0.00020027,2]
[343237546,1732519843976,-184.26654081,0.00020028,2]
[343237547,1732519843985,-3324.46625608,0.00020028,2]
[343237560,1732520065115,159.596049,0.00013973,2]
[343240502,1732520774410,174.7628839,0.00027699,30]
[343240503,1732520774442,310.5783096,0.00027836,30]
[343240504,1732520774549,159.9447562,0.00027836,30]
[343240506,1732520801397,159.596049,0.00013973,2]
[343240507,1732520804081,153.0,0.00027699,30]
[343240508,1732520834704,304.7429954,0.00027836,30]
[343240509,1732520834800,153.0,0.00027699,30]
[343240526,1732521031883,-2216.91884608,0.00018,2]
[343240534,1732521031958,-4798.70615392,0.00018,2]
[343240536,1732521031968,-300.0,0.00018847,2]
[343240538,1732521031978,-300.0,0.00018847,2]
[343240540,1732521031988,-1277.3483291,0.00018848,2]
[343240543,1732521031998,-7034.741913,0.00018848,2]
[343240545,1732521032007,-200.692648,0.00018919,2]
[343240546,1732521032017,-2377.6519968,0.00018969,2]
[343240548,1732521032026,-339.489815,0.00018971,2]
[343240551,1732521032035,-164.879863,0.00019178,2]
[343240553,1732521032045,-157.37,0.0001936,2]
[343240555,1732521032054,-200.692648,0.00019604,2]
[343240556,1732521032064,-623.52,0.00019825,2]
[343240559,1732521032073,-500.0,0.00019825,2]
[343240561,1732521032083,-500.0,0.00019825,2]
[343240562,1732521032092,-630.27,0.00019826,2]
[343240573,1732521032191,-3235.13,0.00019826,2]
[343240575,1732521032200,-500.0,0.00019826,2]
[343240577,1732521032209,-500.0,0.00019826,2]
[343240579,1732521032219,-1472.26997899,0.00019842,2]
[343240581,1732521032228,-1396.19004573,0.00019927,2]
[343240583,1732521032237,-544.86529519,0.00019975,2]
[343240585,1732521032247,-505.00704253,0.00019975,2]
[343240587,1732521032256,-507.23856622,0.00019975,2]
[343240589,1732521032266,-501.268027,0.00019975,2]
[343240591,1732521032275,-500.0,0.00020025,2]
[343240593,1732521032286,-650.66,0.00020025,2]
[343240595,1732521032295,-500.0,0.00020025,2]
[343240597,1732521032304,-500.0,0.00020027,2]
[343240599,1732521032314,-500.0,0.00020027,2]
[343240601,1732521032323,-500.0,0.00020027,2]
[343240603,1732521032333,-414.06626848,0.00020027,2]
[343240605,1732521032343,-623.52,0.00020099,2]
[343240607,1732521032352,-258.57786828,0.00020099,2]
[343240609,1732521032362,-500.0,0.00020099,2]
[343240611,1732521032371,-630.27,0.000201,2]
[343240613,1732521032381,-3235.13,0.000201,2]
[343240615,1732521032390,-500.0,0.000201,2]
[343240617,1732521032400,-500.0,0.000201,2]
[343240619,1732521032413,-159.76970233,0.000201,2]
[343240621,1732521032423,-324.18656449,0.00020124,2]
[343240623,1732521032432,-211.24338859,0.00020199,4]
[343240625,1732521032441,-200.692648,0.00020289,2]
[343240627,1732521032450,-552.36757391,0.00020299,2]
[343240629,1732521032461,-650.66,0.00020299,2]
[343240631,1732521032470,-500.0,0.00020299,2]
[343240633,1732521032479,-500.0,0.00020301,2]
[343240635,1732521032488,-202.06995159,0.00020301,2]
[343240637,1732521032498,-500.0,0.00020301,2]
[343240639,1732521032507,-623.52,0.00020373,2]
[343240641,1732521032516,-500.0,0.00020373,2]
[343240643,1732521032525,-630.27,0.00020374,2]
[343240645,1732521032535,-3235.13,0.00020374,2]
[343240647,1732521032544,-500.0,0.00020374,2]
[343240649,1732521032553,-256.57375367,0.00020374,2]
[343240651,1732521032562,-420.0,0.00020546,2]
[343240652,1732521032572,-650.66,0.00020573,2]
[343240653,1732521032582,-500.0,0.00020573,2]
[343240654,1732521032591,-387.97899375,0.00020575,2]
[343240655,1732521032602,-500.0,0.00020575,2]
[343240656,1732521032612,-623.52,0.00020647,2]
[343240657,1732521032621,-500.0,0.00020647,2]
[343240658,1732521032631,-630.27,0.00020648,2]
[343240659,1732521032643,-3235.13,0.00020648,2]
[343240660,1732521032653,-500.0,0.00020648,2]
[343240661,1732521032663,-420.0,0.00020731,2]
[343240662,1732521032672,-500.0,0.00020777,2]
[343240663,1732521032682,-157.37,0.00020838,2]
[343240664,1732521032693,-650.66,0.00020847,2]
[343240665,1732521032702,-500.0,0.00020847,2]
[343240666,1732521032712,-500.0,0.00020849,2]
[343240667,1732521032722,-397.58764665,0.00020915,2]
[343240668,1732521032731,-623.52,0.00020921,2]
[343240669,1732521032740,-500.0,0.00020921,2]
[343240670,1732521032750,-630.27,0.00020922,2]
[343240672,1732521032759,-3235.13,0.00020922,2]
[343240674,1732521032769,-500.0,0.00020922,2]
[343240676,1732521032778,-650.66,0.00021121,2]
[343240678,1732521032787,-238.16,0.00021121,2]
[343240680,1732521032796,-500.0,0.00021123,2]
[343240682,1732521032806,-1396.19004573,0.00021164,2]
[343240684,1732521032817,-623.52,0.00021195,2]
[343240686,1732521032827,-500.0,0.00021195,2]
[343240688,1732521032836,-630.27,0.00021196,2]
[343240690,1732521032848,-3235.13,0.00021196,2]
[343240691,1732521032857,-500.0,0.00021196,2]
[343240693,1732521032866,-500.0,0.00021224,2]
[343240695,1732521032876,-264.41342353,0.00021317,2]
[343240697,1732521032885,-1505.02280965,0.0002137,2]
[343240699,1732521032894,-650.66,0.00021395,2]
[343240701,1732521032903,-500.0,0.00021397,2]
[343240703,1732521032912,-501.88103754,0.0002144,2]
[343240704,1732521032922,-623.52,0.00021469,2]
[343240705,1732521032932,-500.0,0.00021469,2]
[343240706,1732521032941,-630.27,0.0002147,2]
[343240707,1732521032951,-3235.13,0.0002147,2]
[343240708,1732521032960,-500.0,0.0002147,2]
[343240709,1732521032969,-500.0,0.00021666,2]
[343240710,1732521032978,-500.0,0.00021666,2]
[343240711,1732521032987,-504.38615683,0.00021666,2]
[343240712,1732521032997,-500.0,0.00021666,2]
[343240713,1732521033006,-500.0,0.00021666,2]
[343240714,1732521033015,-500.0,0.00021666,2]
[343240715,1732521033025,-500.0,0.00021666,2]
[343240716,1732521033034,-650.66,0.00021669,2]
[343240717,1732521033043,-500.0,0.00021671,2]
[343240718,1732521033052,-623.52,0.00021743,2]
[343240719,1732521033062,-500.0,0.00021743,2]
[343240720,1732521033071,-630.27,0.00021744,2]
[343240721,1732521033081,-3235.13,0.00021744,2]
[343240722,1732521033090,-500.0,0.00021744,2]
[343240723,1732521033103,-157.37,0.00021934,2]
[343240724,1732521033113,-597.3,0.00021935,3]
[343240725,1732521033122,-298.65,0.00021935,3]
[343240726,1732521033132,-151.0,0.00021943,7]
[343240727,1732521033142,-650.66,0.00021943,2]
[343240728,1732521033151,-500.0,0.00021945,2]
[343240729,1732521033162,-161.0,0.00022,2]
[343240730,1732521033172,-173.0,0.00022,2]
[343240731,1732521033182,-623.52,0.00022017,2]
[343240732,1732521033191,-500.0,0.00022017,2]
[343240733,1732521033201,-630.27,0.00022018,2]
[343240734,1732521033211,-3235.13,0.00022018,2]
[343240735,1732521033220,-500.0,0.00022018,2]
[343240736,1732521033229,-500.0,0.00022116,2]
[343240737,1732521033239,-192.21837855,0.00022116,2]
[343240738,1732521033248,-261.66904271,0.00022116,2]
[343240739,1732521033258,-267.44107871,0.00022116,2]
[343240740,1732521033268,-365.54733731,0.00022116,2]
[343240741,1732521033278,-174850.43023584,0.00022117,2]
[343240742,1732521033288,-500.0,0.00022173,2]
[343240743,1732521033298,-650.66,0.00022217,2]
[343240744,1732521033308,-500.0,0.00022219,2]
[343240745,1732521033317,-1505.02280963,0.00022253,2]
[343240746,1732521033327,-623.52,0.00022291,2]
[343240747,1732521033336,-500.0,0.00022291,2]
[343240748,1732521033350,-630.27,0.00022292,2]
[343240749,1732521033359,-3235.13,0.00022292,2]
[343240750,1732521033369,-500.0,0.00022292,2]
[343240751,1732521033379,-566.0,0.00022399,2]
[343240752,1732521033388,-1396.19004573,0.00022401,2]
[343240753,1732521033397,-650.66,0.00022491,2]
[343240754,1732521033407,-500.0,0.00022493,2]
[343240755,1732521033417,-623.52,0.00022565,2]
[343240756,1732521033427,-500.0,0.00022565,2]
[343240757,1732521033436,-630.27,0.00022566,2]
[343240758,1732521033445,-3235.13,0.00022566,2]
[343240759,1732521033454,-500.0,0.00022566,2]
[343240760,1732521033464,-187.6217793,0.00022609,2]
[343240761,1732521033473,-761.00254458,0.00022721,2]
[343240762,1732521033483,-151.0,0.00022765,7]
[343240763,1732521033492,-650.66,0.00022765,2]
[343240764,1732521033502,-500.0,0.00022767,2]
[343240765,1732521033511,-500.0,0.00022773,2]
[343240766,1732521033521,-500.0,0.00022773,2]
[343240767,1732521033530,-500.0,0.00022773,2]
[343240768,1732521033539,-587.0,0.00022804,2]
[343240769,1732521033549,-1206.03578145,0.00022837,2]
[343240770,1732521033559,-623.52,0.00022839,2]
[343240771,1732521033568,-500.0,0.00022839,2]
[343240772,1732521033578,-630.27,0.0002284,2]
[343240773,1732521033587,-3235.13,0.0002284,2]
[343240774,1732521033599,-500.0,0.0002284,2]
[343240775,1732521033610,-262.1558775,0.00023,2]
[343240776,1732521033619,-650.66,0.00023039,2]
[343240777,1732521033628,-500.0,0.00023041,2]
[343240778,1732521033638,-160.13741299,0.0002305,2]
[343240779,1732521033651,-623.52,0.00023113,2]
[343240780,1732521033660,-500.0,0.00023113,2]
[343240781,1732521033669,-630.27,0.00023114,2]
[343240782,1732521033679,-3235.13,0.00023114,2]
[343240783,1732521033688,-638.8,0.00023114,2]
[343240784,1732521033698,-1505.02280963,0.00023135,2]
[343240785,1732521033707,-286.020194,0.000232,10]
[343240786,1732521033717,-1194.6,0.00023305,3]
[343240787,1732521033726,-597.3,0.00023305,3]
[343240788,1732521033735,-650.66,0.00023313,2]
[343240789,1732521033744,-500.0,0.00023315,2]
[343240790,1732521033754,-1000.0,0.00023321,2]
[343240791,1732521033764,-1001.04976494,0.00023321,2]
[343240792,1732521033773,-500.48590819,0.00023321,2]
[343240793,1732521033783,-151.0,0.00023321,7]
[343240794,1732521033792,-623.52,0.00023387,2]
[343240795,1732521033801,-500.0,0.00023387,2]
[343240796,1732521033811,-630.27,0.00023388,2]
[343240797,1732521033821,-3235.13,0.00023388,2]
[343240798,1732521033830,-167.748,0.00023501,4]
[343240799,1732521033839,-650.66,0.00023587,2]
[343240800,1732521033850,-500.0,0.00023589,2]
[343240801,1732521033859,-151.0,0.000236,5]
[343240802,1732521033869,-1396.19004573,0.00023638,2]
[343240803,1732521033879,-623.52,0.00023661,2]
[343240804,1732521033889,-500.0,0.00023661,2]
[343240805,1732521033900,-630.27,0.00023662,2]
[343240806,1732521033909,-3235.13,0.00023662,2]
[343240807,1732521033920,-650.66,0.00023861,2]
[343240808,1732521033930,-593.13,0.00023863,2]
[343240809,1732521033940,-623.52,0.00023935,2]
[343240810,1732521033950,-500.0,0.00023935,2]
[343240811,1732521033961,-630.27,0.00023936,2]
[343240812,1732521033972,-3235.13,0.00023936,2]
[343240813,1732521033983,-386.0,0.0002397,10]
[343240814,1732521033993,-1505.02280963,0.00024018,2]
[343240815,1732521034003,-151.0,0.000241,8]
[343240816,1732521034013,-650.66,0.00024135,2]
[343240817,1732521034023,-623.52,0.00024209,2]
[343240818,1732521034033,-500.0,0.00024209,2]
[343240819,1732521034043,-630.27,0.0002421,2]
[343240820,1732521034052,-3235.13,0.0002421,2]
[343240821,1732521034061,-151.0,0.00024322,7]
[343240822,1732521034070,-1500.0,0.00024322,2]
[343240823,1732521034079,-151.0,0.000244,7]
[343240824,1732521034089,-650.66,0.00024409,2]
[343240825,1732521034104,-623.52,0.00024483,2]
[343240826,1732521034114,-500.0,0.00024483,2]
[343240827,1732521034124,-630.27,0.00024484,2]
[343240828,1732521034133,-3235.13,0.00024484,2]
[343240829,1732521034143,-151.0,0.000245,7]
[343240830,1732521034153,-650.66,0.00024683,2]
[343240831,1732521034162,-623.52,0.00024757,2]
[343240832,1732521034172,-500.0,0.00024757,2]
[343240833,1732521034182,-630.27,0.00024758,2]
[343240834,1732521034192,-3235.13,0.00024758,2]
[343240835,1732521034202,-319.10428007,0.00024777,2]
[343240836,1732521034213,-1396.19004573,0.00024874,2]
[343240837,1732521034223,-151.0,0.000249,9]
[343240838,1732521034233,-151.0,0.000249,8]
[343240839,1732521034243,-1505.02280963,0.000249,2]
[343240840,1732521034253,-650.66,0.00024957,2]
[343240841,1732521034263,-500.0,0.00024973,2]
[343240842,1732521034273,-501.72162122,0.00024973,2]
[343240843,1732521034283,-290.92321474,0.00024973,2]
[343240844,1732521034294,-30000.0,0.0002499,10]
[343240845,1732521034303,-151.0,0.0002499,7]
[343240846,1732521034313,-150.489,0.00024994,2]
[343240847,1732521034323,-531.0,0.00024994,2]
[343240848,1732521034332,-1107.0,0.00024994,2]
[343240849,1732521034342,-2379.0,0.00024994,2]
[343240850,1732521034354,-10140.51980288,0.00025,2]
[343240851,1732521034364,-15466.68632386,0.00025,7]
[343240852,1732521034416,-135388.74960287,0.00025,7]
[343240853,1732521034425,-34762.82,0.00025,2]
[343240854,1732521034435,-151.0,0.00025,7]
[343240855,1732521034445,-151.0,0.00025,7]
[343240856,1732521034454,-501.6240947,0.00025007,2]
[343240857,1732521034464,-623.52,0.00025031,2]
[343240858,1732521034475,-500.0,0.00025031,2]
[343240859,1732521034485,-630.27,0.00025032,2]
[343240860,1732521034495,-3235.13,0.00025032,2]
[343240861,1732521034505,-703.0,0.00025085,2]
[343240862,1732521034516,-650.66,0.00025231,2]
[343240863,1732521034527,-151.0,0.000253,11]
[343240864,1732521034536,-151.0,0.000253,11]
[343240865,1732521034623,-623.52,0.00025305,2]
[343240866,1732521034633,-500.0,0.00025305,2]
[343240867,1732521034647,-630.27,0.00025306,2]
[343240868,1732521034657,-3235.13,0.00025306,2]
[343240869,1732521034668,-500.0,0.00025486,2]
[343240870,1732521034678,-650.66,0.00025505,2]
[343240871,1732521034688,-500.69987621,0.00025521,2]
[343240872,1732521034698,-623.52,0.00025579,2]
[343240873,1732521034707,-500.0,0.00025579,2]
[343240874,1732521034717,-630.27,0.0002558,2]
[343240875,1732521034726,-3235.13,0.0002558,2]
[343240876,1732521034736,-2000.0,0.0002562,2]
[343240877,1732521034746,-151.0,0.000257,20]
[343240878,1732521034755,-151.0,0.000257,19]
[343240879,1732521034765,-650.66,0.00025779,2]
[343240880,1732521034774,-623.52,0.00025853,2]
[343240881,1732521034783,-500.0,0.00025853,2]
[343240882,1732521034793,-630.27,0.00025854,2]
[343240883,1732521034803,-3235.13,0.00025854,2]
[343240884,1732521034813,-1000.0,0.00026034,2]
[343240885,1732521034823,-151.0,0.00026053,7]
[343240886,1732521034834,-650.66,0.00026053,2]
[343240887,1732521034844,-151.0,0.000261,13]
[343240888,1732521034854,-1396.19004573,0.00026111,2]
[343240889,1732521034863,-623.62146867,0.00026127,2]
[343240890,1732521034873,-451.84286532,0.00026127,2]
[343240891,1732521034883,-630.41791023,0.00026128,2]
[343240892,1732521034893,-3235.32853161,0.00026128,2]
[343240893,1732521034903,-151.0,0.000262,13]
[343240894,1732521034912,-650.85582244,0.00026327,2]
[343240895,1732521034922,-151.0,0.000266,20]
[343240896,1732521034932,-151.0,0.000266,13]
[343240897,1732521034941,-50000.0,0.000268,10]
[343240898,1732521034951,-151.0,0.000268,7]
[343240899,1732521034960,-242161.48905694,0.000269,2]
[343240900,1732521034970,-290.71653,0.000269,7]
[343240901,1732521034980,-263154.62891929,0.00027,15]
[343240902,1732521034989,-160959.96,0.00027,2]
[343240903,1732521034999,-34762.82,0.00027,2]
[343240904,1732521035009,-3167.0,0.00027,15]
[343240905,1732521035018,-1500.0,0.00027036,2]
[343240906,1732521035029,-500.87814142,0.00027156,2]
[343240907,1732521035039,-1396.19004573,0.00027348,2]
[343240908,1732521035049,-500.0,0.00027397,2]
[343240909,1732521035058,-20060.77495426,0.0002787,2]
[343240910,1732521035068,-530.264,0.00027994,2]
[343240911,1732521035077,-1105.0,0.00027994,2]
[343240912,1732521035087,-2379.0,0.00027994,2]
[343240913,1732521035097,-3000.0,0.00028,2]
[343240914,1732521035108,-1210.692953,0.00028,2]
[343240915,1732521035118,-616.0,0.00028,2]
[343240916,1732521035127,-725.104746,0.00028,20]
[343240917,1732521035136,-3000.0,0.0002801,2]
[343240918,1732521035146,-3000.0,0.0002802,2]
[343240919,1732521035156,-3000.0,0.0002803,2]
[343240920,1732521035166,-3000.0,0.0002804,2]
[343240921,1732521035175,-3000.0,0.0002805,2]
[343240922,1732521035185,-3000.0,0.0002806,2]
[343240923,1732521035195,-3000.0,0.0002807,2]
[343240924,1732521035204,-3795.600472,0.0002808,2]
[343240925,1732521035214,-882.76,0.000283,2]
[343240926,1732521035224,-160.0,0.00028306,5]
[343240927,1732521035234,-509.15578122,0.00028333,5]
[343240928,1732521035243,-339.489815,0.00028456,2]
[343240929,1732521035253,-906.77738609,0.00028465,16]
[343240930,1732521035262,-500.0,0.00028512,2]
[343240931,1732521035272,-150.7263664,0.00028512,2]
[343240932,1732521035282,-850.67224926,0.00028512,2]
[343240933,1732521035292,-300.0,0.00028512,2]
[343240934,1732521035302,-500.0,0.00028512,2]
[343240935,1732521035312,-500.0,0.00028512,2]
[343240936,1732521035322,-500.0,0.00028512,2]
[343240937,1732521035333,-500.0,0.00028512,2]
[343240938,1732521035344,-500.0,0.00028512,2]
[343240939,1732521035354,-650.195,0.00028545,2]
[343240940,1732521035364,-4711.442,0.00028545,2]
[343240941,1732521035375,-330.0,0.00028585,2]
[343240942,1732521035385,-482.56967954,0.00028585,2]
[343240943,1732521035395,-1396.19004573,0.00028585,2]
[343240944,1732521035405,-151.0,0.00028645,15]
[343240945,1732521035416,-500.0,0.00028646,5]
[343240946,1732521035426,-159.76970233,0.00028684,2]
[343240947,1732521035435,-159.76970233,0.00028684,2]
[343240948,1732521035445,-972382.2512247,0.00028685,10]
[343241022,1732521038359,-497.13892486,0.00021469,2]
[343241025,1732521038369,-500.0,0.00021469,2]
[343241028,1732521038379,-500.0,0.00021469,2]
[343241030,1732521038389,-500.0,0.00021469,2]
[343241034,1732521038398,-500.0,0.00021469,2]
[343241036,1732521038407,-500.0,0.00021469,2]
[343241039,1732521038417,-430.0,0.00021469,2]
[343241042,1732521038426,-500.0,0.00021469,2]
[343241044,1732521038435,-500.0,0.00022173,2]
[343241045,1732521038444,-896.0,0.0002498,3]
[343241047,1732521038453,-4456.86107514,0.00028685,10]
[343241184,1732521041640,-794.49,0.000281,2]
[343241185,1732521041653,-626.88,0.00028675,10]
[343241186,1732521041663,-347739.77336285,0.00028685,10]
[343241187,1732521041674,-490.09,0.00028685,10]
[343241188,1732521041685,-230131.7978172,0.00028685,10]
[343241189,1732521041697,-5249.37075645,0.00028685,10]
[343241194,1732521042964,-493.405,0.00028685,10]
[343241195,1732521042976,-670.90132994,0.00028685,10]
[343241201,1732521046192,-173.0,0.00022,2]
[343241203,1732521046202,-48782.5,0.00028685,10]
[343241359,1732521087599,7239.76,0.00028,30]
[343241366,1732521660828,159.687135,0.00013973,2]
[343241369,1732521999146,-235.7522136,0.00018,2]
[343241392,1732522232150,-202.65595,0.00018971,2]
[343241393,1732522232160,-202.65595,0.00020341,2]
[343241394,1732522232170,-2242.811,0.00024459,2]
[343241395,1732522232180,-1105.0,0.00024459,2]
[343241396,1732522232190,-21243.8902988,0.00025265,2]
[343241397,1732522232199,-7971.64218192,0.00026368,3]
[343241399,1732522232208,-167.056,0.00026575,13]
[343241401,1732522232218,-214.19240113,0.00026601,2]
[343241403,1732522232229,-500.0,0.00027397,2]
[343241405,1732522232239,-715.04,0.000283,2]
[343241406,1732522232249,-6505.41814676,0.00028485,2]
[343241407,1732522232259,-6505.41814674,0.0002851,2]
[343241408,1732522232269,-6505.41814674,0.00028535,2]
[343241409,1732522232280,-2386.30682062,0.0002856,2]
[343241461,1732522238206,-362.03247165,0.00018781,2]
[343241463,1732522238216,-4119.11132612,0.0002856,2]
[343241464,1732522238225,-500.0,0.00028574,3]
[343241466,1732522238235,-896.2,0.00028575,10]
[343241468,1732522238245,-746.83,0.00028575,10]
[343241470,1732522238255,-622.36,0.00028575,10]
[343241472,1732522238264,-518.63,0.00028575,10]
[343241474,1732522238274,-500.0,0.00028582,3]
[343241476,1732522238284,-183.1683299,0.00028584,2]
[343241477,1732522238294,-187.2087551,0.00028584,2]
[343241479,1732522238303,-605.88313612,0.00028584,2]
[343241480,1732522238313,-500.48735076,0.00028584,2]
[343241481,1732522238329,-270.0,0.00028584,2]
[343241482,1732522238342,-13420.17985329,0.00028585,2]
[343241483,1732522238360,-321.94,0.00028585,2]
[343241484,1732522238371,-54007.32165177,0.00028585,2]
[343241490,1732522240136,-73512.65617996,0.00028585,2]
[343241493,1732522240150,-1220.45936198,0.00028585,2]
[343241495,1732522240162,-489.945,0.00028585,2]
[343241575,1732522667175,160.220836,0.00013973,2]
[343241580,1732523131970,200.0,0.00016,4]
[343241581,1732523154344,200.0,0.00028,30]
[343241601,1732523329469,160.220836,0.00013973,2]
[343241654,1732523432246,-2472.12063781,0.00019586,5]
[343241656,1732523432256,-855.64655832,0.00019784,5]
[343241658,1732523432265,-300.0,0.00021226,2]
[343241660,1732523432275,-3240.0,0.00021226,2]
[343241662,1732523432284,-500.0,0.00021227,10]
[343241664,1732523432293,-500.0,0.00021227,10]
[343241666,1732523432302,-500.0,0.00021227,10]
[343241668,1732523432311,-500.0,0.00021227,10]
[343241670,1732523432320,-500.0,0.00021227,10]
[343241672,1732523432330,-554.88147211,0.00021227,10]
[343241674,1732523432341,-173.0,0.00022,2]
[343241676,1732523432350,-5000.0,0.000275,2]
[343241678,1732523432360,-5000.0,0.000278,2]
[343241679,1732523432370,-603.70042172,0.00028,2]
[343241681,1732523432379,-5000.0,0.00028,2]
[343241683,1732523432389,-643.53,0.000283,2]
[343241685,1732523432398,-286.65413213,0.00028485,2]
[343241687,1732523432410,-200.0,0.000285,15]
[343241689,1732523432419,-1301.08362938,0.000285,2]
[343241692,1732523432428,-183.41764904,0.000285,2]
[343241693,1732523432438,-922.5,0.00028512,15]
[343241695,1732523432447,-500.0,0.00028521,3]
[343241698,1732523432457,-1301.08362934,0.00028528,2]
[343241699,1732523432466,-500.0,0.0002853,3]
[343241702,1732523432476,-500.0,0.00028538,3]
[343241704,1732523432485,-500.0,0.00028547,3]
[343241706,1732523432494,-500.0,0.00028556,3]
[343241708,1732523432504,-1301.08362934,0.00028556,2]
[343241710,1732523432513,-500.0,0.00028565,3]
[343241712,1732523432522,-500.85093928,0.00028573,5]
[343241713,1732523432531,-500.0,0.00028584,2]
[343241716,1732523432541,-1301.08362934,0.00028584,2]
[343241718,1732523432550,-432.2,0.0002859,10]
[343241719,1732523432559,-360.16,0.0002859,10]
[343241721,1732523432568,-300.14,0.0002859,10]
[343241722,1732523432577,-500.0,0.00028591,3]
[343241723,1732523432587,-424.11819528,0.00028599,2]
[343241724,1732523432595,-345.39869399,0.000286,2]
[343241725,1732523432604,-500.0,0.000286,3]
[343241726,1732523432615,-97914.84174021,0.000286,2]
[343241727,1732523432626,-19569.37064711,0.000286,2]
[343241728,1732523432637,-1895.70048955,0.000286,2]
[343241729,1732523432648,-5455.54252655,0.000286,2]
[343241790,1732523443332,-250.11,0.0002859,10]
[343241791,1732523443342,-701.86235434,0.000286,2]
[343241808,1732523858934,297371.90239062,0.0001,2]
[343241809,1732523858962,3285.0,0.0001,2]
[343241810,1732523859005,20000.0,0.0001,2]
[343241811,1732523859039,20000.0,0.0001,2]
[343241812,1732523859073,20000.0,0.0001,2]
[343241813,1732523859105,20000.0,0.0001,2]
[343241816,1732524334135,39107.13489951,0.00028,30]
[343241817,1732524374730,156.4594035,0.00027753,30]
[343241818,1732524403541,153.0,0.00027753,30]
[343241819,1732524434332,153.0,0.00027753,30]
[343241820,1732524463204,153.0,0.00027753,30]
[343241821,1732524493761,153.0,0.00027753,30]
[343241822,1732524523225,153.0,0.00027753,30]
[343241823,1732524554819,153.0,0.00027753,30]
[343241827,1732524583841,153.0,0.00027753,30]
[343241828,1732524613872,153.0,0.00027753,30]
[343241912,1732524632451,-300.0,9.999e-05,2]
[343241914,1732524632461,-300.0,9.999e-05,2]
[343241916,1732524632470,-230.26579599,0.0001,2]
[343241918,1732524632479,-3046.89274602,0.0001,2]
[343242033,1732524638578,-17510.14022778,0.0001,2]
[343242081,1732524640436,-4097.51449374,0.0001,2]
[343242082,1732524640447,-453.40201646,0.0001,2]
[343242083,1732524640458,-458.4,0.0001,2]